bitfinex/quotes_BTCUSD_20220307
["timestamp","ask_amount","ask_price","bid_price","bid_amount"]
[1646664474415,0.1,38974.0,38972.0,0.22257103]
[1646664474810,0.128342,38975.0,38972.0,0.27257103]
[1646664475014,0.010279,38975.0,38972.0,0.27257103]
[1646664475212,0.010279,38975.0,38973.0,0.0472]
[1646664475512,0.192467,38985.0,38973.0,0.2268065]
[1646664475711,0.192467,38985.0,38980.0,0.25]
[1646664475712,0.064148,38984.0,38980.0,0.25]
[1646664475911,0.064148,38984.0,38978.0,0.0472]
[1646664476113,0.064148,38984.0,38974.0,0.01281]
[1646664476115,0.064148,38984.0,38977.0,0.05]
[1646664476116,0.128328,38983.0,38977.0,0.05]
[1646664476314,0.128328,38983.0,38974.0,0.01281]
[1646664476315,0.128346,38981.0,38974.0,0.01281]
[1646664476737,0.128346,38981.0,38973.0,0.2296065]
[1646664476941,0.064173,38980.0,38976.0,0.18315339]
[1646664477338,0.128347,38980.0,38976.0,0.28315339]
[1646664477538,0.128347,38980.0,38976.0,0.33035339]
[1646664477539,0.064173,38980.0,38976.0,0.33035339]
[1646664477938,0.064173,38980.0,38976.0,0.32535339]
[1646664478141,0.064173,38980.0,38979.0,0.19487463]
[1646664478539,0.06444169,38980.0,38979.0,0.24487463]
[1646664478937,0.31444169,38980.0,38979.0,0.24487463]
[1646664479337,0.31444169,38980.0,38979.0,0.05]
[1646664479542,0.309173,38980.0,38978.0,0.05]
[1646664479737,0.309173,38980.0,38976.0,0.1]
[1646664479938,0.309173,38980.0,38976.0,0.11282]
[1646664480140,0.309173,38980.0,38976.0,0.1]
[1646664480391,0.309173,38980.0,38972.0,0.25]
[1646664480586,0.309173,38980.0,38969.0,0.17842776]
[1646664480587,2.61188703,38977.0,38974.0,0.05]
[1646664480788,0.064181,38976.0,38971.0,0.003]
[1646664480991,0.28257332,38976.0,38971.0,0.003]
[1646664481786,0.38257332,38976.0,38971.0,0.003]
[1646664481987,0.38257332,38976.0,38969.0,0.17842776]
[1646664482191,0.00026869,38975.0,38969.0,0.17842776]
[1646664482389,0.00026869,38975.0,38970.0,0.25]
[1646664482588,0.00026869,38975.0,38972.0,0.25]
[1646664482787,0.00026869,38975.0,38974.0,0.05]
[1646664483188,0.3,38986.0,38974.0,0.05]
[1646664483389,0.00026869,38976.0,38974.0,0.05]
[1646664484053,0.00026869,38976.0,38974.0,0.045]
[1646664484257,0.064162,38980.0,38974.0,0.23759419]
[1646664484451,8.061e-05,38977.0,38974.0,0.23759419]
[1646664484852,0.06425061,38977.0,38974.0,0.23759419]
[1646664485251,0.33144405,38977.0,38974.0,0.23759419]
[1646664485451,0.33144405,38977.0,38974.0,0.045]
[1646664485452,0.128351,38976.0,38974.0,0.045]
[1646664485651,0.128351,38976.0,38973.0,0.05]
[1646664485652,0.3,38975.0,38973.0,0.05]
[1646664485855,0.1,38975.0,38969.0,0.003]
[1646664486052,0.1,38975.0,38966.0,0.001]
[1646664486252,0.2456631,38971.0,38966.0,0.001]
[1646664486452,0.3,38970.0,38966.0,0.001]
[1646664486756,0.397683,38969.0,38966.0,0.001]
[1646664486953,0.528381,38970.0,38966.0,0.001]
[1646664487155,0.1,38968.0,38966.0,0.001]
[1646664487355,0.3,38967.0,38966.0,0.001]
[1646664487555,1.447683,38966.0,38964.0,0.00038992]
[1646664487807,0.064196,38967.0,38964.0,0.00038992]
[1646664488808,0.070196,38967.0,38964.0,0.00038992]
[1646664489311,0.320196,38967.0,38965.0,0.24]
[1646664489508,0.320196,38967.0,38965.0,0.29]
[1646664489708,0.320196,38967.0,38965.0,0.1]
[1646664489709,0.3,38966.0,38965.0,0.1]
[1646664489911,0.697683,38966.0,38965.0,0.05]
[1646664490110,0.397683,38965.0,38964.0,0.00038992]
[1646664490310,0.697683,38965.0,38964.0,0.00038992]
[1646664490508,0.397683,38965.0,38964.0,0.00038992]
[1646664490709,0.002,38965.0,38964.0,0.00038992]
[1646664490909,0.399683,38965.0,38964.0,0.00038992]
[1646664491109,0.002,38965.0,38964.0,0.00038992]
[1646664491310,0.402,38965.0,38964.0,0.00038992]
[1646664491560,0.102,38965.0,38964.0,0.00038992]
[1646664491749,0.002,38965.0,38964.0,0.00038992]
[1646664491949,0.164195,38966.0,38964.0,0.00038992]
[1646664492150,0.02554,38965.0,38964.0,0.00038992]
[1646664492349,0.24505999,38965.0,38964.0,0.00038992]
[1646664493550,0.27059999,38965.0,38964.0,0.00038992]
[1646664493852,0.34505999,38965.0,38964.0,0.00038992]
[1646664494051,1.04274299,38965.0,38963.0,0.001]
[1646664494254,1.04274299,38965.0,38963.0,0.00137457]
[1646664494255,0.397683,38964.0,38963.0,0.00137457]
[1646664494452,0.697683,38964.0,38963.0,0.00137457]
[1646664494652,0.797683,38964.0,38963.0,0.00137457]
[1646664495295,0.797683,38964.0,38963.0,0.001]
[1646664496495,0.497683,38964.0,38963.0,0.001]
[1646664497097,0.4373935,38966.0,38963.0,0.001]
[1646664497098,0.064195,38966.0,38963.0,0.001]
[1646664497299,0.25,38967.0,38965.0,0.24]
[1646664497599,0.25,38967.0,38965.0,0.50922221]
[1646664497795,0.25,38967.0,38965.0,0.1]
[1646664497995,0.25,38967.0,38963.0,0.00137461]
[1646664498197,0.314187,38967.0,38963.0,0.00137461]
[1646664498795,0.314187,38967.0,38963.0,0.001]
[1646664499057,0.314187,38967.0,38966.0,0.17676746]
[1646664499256,0.314187,38967.0,38965.0,0.1]
[1646664499657,0.314187,38967.0,38965.0,0.05]
[1646664500359,0.04919301,38961.0,38960.0,0.002]
[1646664500757,0.04919301,38961.0,38960.0,0.7813]
[1646664501156,0.04919301,38961.0,38960.0,0.80684]
[1646664501358,0.04919301,38961.0,38960.0,0.02754]
[1646664501558,0.04919301,38961.0,38960.0,0.002]
[1646664503391,0.3,38970.0,38960.0,0.15963093]
[1646664503594,0.1,38977.0,38965.0,0.15]
[1646664503793,0.20896509,38982.0,38967.0,0.79088066]
[1646664504093,0.064166,38981.0,38969.0,0.80484]
[1646664504393,0.064166,38981.0,38973.0,0.15840245]
[1646664504592,0.3,38983.0,38973.0,0.20560245]
[1646664504790,0.3,38983.0,38973.0,0.0972]
[1646664504991,0.32554,38983.0,38973.0,0.0972]
[1646664505199,0.0002706,38975.0,38973.0,0.05]
[1646664505591,0.0105506,38975.0,38973.0,0.05]
[1646664505791,0.0002706,38975.0,38971.0,0.12501]
[1646664505992,0.364178,38973.0,38971.0,0.02501]
[1646664506193,0.364178,38973.0,38971.0,0.07501]
[1646664506194,0.397683,38972.0,38971.0,0.07501]
[1646664506392,0.397683,38972.0,38971.0,0.02501]
[1646664506638,0.064178,38973.0,38971.0,0.02501]
[1646664506839,0.697683,38972.0,38971.0,0.02501]
[1646664507041,0.86110663,38972.0,38971.0,0.02501]
[1646664507239,0.96110663,38972.0,38971.0,0.02501]
[1646664507639,1.02530263,38972.0,38971.0,0.02501]
[1646664508042,1.27554,38971.0,38961.0,0.0003974]
[1646664508248,0.423223,38965.0,38961.0,0.0003974]
[1646664508440,0.02501,38964.0,38960.0,0.002]
[1646664508739,0.189228,38964.0,38961.0,0.00037792]
[1646664508940,0.12501,38964.0,38961.0,0.00037792]
[1646664509542,0.02501,38964.0,38960.0,0.002]
[1646664509741,0.02501,38964.0,38963.0,0.80484]
[1646664509943,0.02501,38964.0,38963.0,1.1265]
[1646664510140,0.02501,38964.0,38963.0,0.36002]
[1646664510403,0.02501,38964.0,38963.0,0.25954044]
[1646664510602,0.02501,38964.0,38963.0,0.06002]
[1646664511206,0.037024,38974.0,38965.0,0.01583178]
[1646664511405,0.037024,38974.0,38961.0,0.00037791]
[1646664511406,0.56221084,38973.0,38961.0,0.00037791]
[1646664511602,2.22190104,38966.0,38961.0,0.00037791]
[1646664512001,2.22190104,38966.0,38959.0,0.002]
[1646664512200,2.28609904,38966.0,38959.0,0.002]
[1646664512601,1.25,38965.0,38957.0,0.001]
[1646664512803,0.064195,38964.0,38957.0,0.001]
[1646664513204,0.064198,38963.0,38957.0,0.001]
[1646664513803,0.064198,38963.0,38955.0,0.19432768]
[1646664513804,0.29132745,38961.0,38955.0,0.19432768]
[1646664514038,0.064198,38963.0,38955.0,0.1921545]
[1646664514241,0.064197,38961.0,38953.0,0.17839415]
[1646664514444,0.064196,38960.0,38954.0,0.01283]
[1646664514640,0.064196,38960.0,38959.0,0.17521159]
[1646664515239,0.3273783,38964.0,38959.0,0.17521159]
[1646664515439,0.06419,38964.0,38959.0,0.17521159]
[1646664515639,0.064187,38963.0,38959.0,0.17521159]
[1646664515845,0.064187,38963.0,38960.0,0.0003974]
[1646664516541,1.061268,38975.0,38960.0,0.0003974]
[1646664516545,0.128355,38971.0,38961.0,1.2972]
[1646664516743,0.049844,38974.0,38968.0,0.80484]
[1646664516744,0.037024,38974.0,38968.0,0.80484]
[1646664516942,0.037024,38974.0,38970.0,0.02554]
[1646664517142,0.037024,38974.0,38970.0,0.0472]
[1646664517441,0.037024,38974.0,38971.0,0.1903194]
[1646664517642,0.064167,38973.0,38971.0,0.1903194]
[1646664517895,0.06352004,38973.0,38971.0,0.2403194]
[1646664518297,0.06352004,38973.0,38967.0,0.1]
[1646664518501,0.06352004,38973.0,38967.0,0.28251446]
[1646664518502,0.12769004,38973.0,38967.0,0.28251446]
[1646664518897,0.128347,38972.0,38967.0,0.37222246]
[1646664519096,0.06352004,38973.0,38967.0,1.12598246]
[1646664519296,0.06352004,38973.0,38970.0,0.21739078]
[1646664519496,0.06352004,38973.0,38970.0,0.26739078]
[1646664519497,8.107e-05,38971.0,38970.0,0.26739078]
[1646664520196,8.107e-05,38971.0,38967.0,0.23251446]
[1646664520197,8.107e-05,38971.0,38967.0,0.1]
[1646664520397,0.128353,38972.0,38967.0,0.05]
[1646664520796,0.2219736,38971.0,38967.0,0.05]
[1646664520996,0.064176,38971.0,38967.0,0.05]
[1646664521200,0.20307692,38972.0,38970.0,0.05]
[1646664521398,0.19279692,38972.0,38968.0,0.26577574]
[1646664521643,0.192527,38972.0,38968.0,0.26577574]
[1646664522244,0.192527,38972.0,38968.0,0.05]
[1646664522645,0.192527,38972.0,38967.0,0.1]
[1646664522646,0.492527,38972.0,38967.0,0.1]
[1646664522845,0.492527,38972.0,38967.0,0.05]
[1646664523069,0.26425109,38968.0,38967.0,0.1]
[1646664523246,0.45152322,38968.0,38963.0,0.003]
[1646664523448,0.723223,38967.0,38963.0,0.003]
[1646664523646,0.723223,38967.0,38958.0,0.01283]
[1646664523647,1.25,38966.0,38958.0,0.01283]
[1646664523849,0.3,38965.0,38958.0,0.01283]
[1646664524250,0.22602645,38962.0,38958.0,0.01283]
[1646664524446,0.064212,38960.0,38958.0,0.01283]
[1646664525046,0.074494,38960.0,38958.0,0.01283]
[1646664525301,0.064212,38960.0,38958.0,0.01283]
[1646664526694,0.064212,38960.0,38957.0,0.00039762]
[1646664526898,0.321049,38959.0,38957.0,0.00039762]
[1646664527296,0.192633,38959.0,38957.0,0.00039762]
[1646664527698,0.192633,38959.0,38947.0,0.21073928]
[1646664527896,0.192633,38959.0,38942.0,0.05]
[1646664527897,0.22282332,38954.0,38942.0,0.05]
[1646664528095,0.22282332,38954.0,38942.0,0.8293]
[1646664528096,0.064211,38952.0,38942.0,0.8293]
[1646664528697,0.064211,38952.0,38949.0,0.18652528]
[1646664529145,0.010284,38953.0,38949.0,0.99136528]
[1646664529345,0.128402,38964.0,38949.0,0.99136528]
[1646664529346,0.20896509,38966.0,38950.0,0.03825206]
[1646664529543,0.1,38967.0,38952.0,0.2162608]
[1646664529742,0.1,38967.0,38952.0,0.29688288]
[1646664529942,0.1,38967.0,38952.0,0.2662608]
[1646664530142,0.06419,38962.0,38954.0,0.00039731]
[1646664530542,0.42388399,38964.0,38954.0,0.00039731]
[1646664530742,0.42388399,38964.0,38955.0,0.23061648]
[1646664530743,4.25,38960.0,38955.0,0.23061648]
[1646664531343,4.25,38960.0,38956.0,0.0003973]
[1646664531543,4.25,38960.0,38956.0,0.0645833]
[1646664531747,4.25,38960.0,38956.0,0.0003973]
[1646664531943,4.25,38960.0,38958.0,0.21716773]
[1646664532144,0.55932847,38957.0,38956.0,0.0003973]
[1646664532344,0.85932847,38957.0,38955.0,0.05]
[1646664532545,0.55932847,38957.0,38947.0,0.7793]
[1646664532790,0.55932847,38957.0,38951.0,0.00358964]
[1646664532791,0.56032847,38957.0,38951.0,0.00358964]
[1646664532990,0.84353058,38957.0,38951.0,0.00358964]
[1646664533391,0.128415,38954.0,38951.0,0.00358964]
[1646664533593,0.128415,38954.0,38951.0,0.002]
[1646664533791,0.128415,38954.0,38952.0,0.00039739]
[1646664533998,0.064209,38955.0,38952.0,0.00039739]
[1646664533999,0.064207,38955.0,38952.0,0.00039739]
[1646664534793,0.064207,38955.0,38948.0,0.1695678]
[1646664534994,0.064207,38955.0,38952.0,0.00038655]
[1646664535492,0.55932847,38957.0,38952.0,0.00038655]
[1646664535692,0.55932847,38957.0,38953.0,0.19118106]
[1646664536092,0.55932847,38957.0,38953.0,0.24118106]
[1646664536292,0.55932847,38957.0,38953.0,0.2415676]
[1646664536545,0.064195,38956.0,38953.0,0.2415676]
[1646664537250,0.064195,38956.0,38949.0,0.064197]
[1646664537545,0.064195,38956.0,38953.0,0.00038654]
[1646664537546,0.364195,38956.0,38953.0,0.00038654]
[1646664538146,0.23669948,38949.0,38945.0,0.17667394]
[1646664538347,0.064215,38948.0,38945.0,0.17667394]
[1646664540412,8.242e-05,38949.0,38945.0,0.17667394]
[1646664540809,0.010285,38949.0,38945.0,0.17667394]
[1646664541011,0.01036743,38949.0,38945.0,0.17667394]
[1646664541211,8.243e-05,38949.0,38945.0,0.17667394]
[1646664541410,0.25008243,38949.0,38945.0,0.22667394]
[1646664541811,0.35008243,38949.0,38945.0,0.17667394]
[1646664542010,0.25,38949.0,38945.0,0.17667394]
[1646664542210,0.25,38949.0,38945.0,0.17707139]
[1646664542412,0.25027475,38949.0,38945.0,0.17707139]
[1646664542813,0.3,38948.0,38945.0,0.12975676]
[1646664543011,0.697683,38948.0,38945.0,0.12975676]
[1646664543212,0.947683,38948.0,38945.0,0.12935931]
[1646664543411,0.697683,38948.0,38945.0,0.12935931]
[1646664543612,8.242e-05,38949.0,38945.0,0.12935931]
[1646664544448,0.22009244,38951.0,38945.0,0.12935931]
[1646664544648,8.243e-05,38949.0,38945.0,0.12935931]
[1646664545051,0.00208243,38949.0,38945.0,0.12935931]
[1646664545249,0.128445,38948.0,38945.0,0.12935931]
[1646664545447,0.00208243,38949.0,38946.0,0.3]
[1646664545648,0.00208243,38949.0,38947.0,0.01561789]
[1646664545649,0.002,38949.0,38947.0,0.01561789]
[1646664545849,0.00208242,38949.0,38948.0,0.07950428]
[1646664546050,0.00208242,38949.0,38948.0,0.35]
[1646664546248,8.242e-05,38949.0,38948.0,0.56967055]
[1646664546447,8.242e-05,38949.0,38948.0,1.34897055]
[1646664546648,0.55932847,38957.0,38952.0,0.21777378]
[1646664546851,0.064198,38956.0,38952.0,0.26777378]
[1646664547450,0.55932847,38957.0,38954.0,0.19826705]
[1646664547656,0.55932847,38957.0,38954.0,1.00310705]
[1646664547901,0.55932847,38957.0,38954.0,1.02756705]
[1646664548305,0.55932847,38957.0,38954.0,0.05]
[1646664548501,0.55932847,38957.0,38952.0,0.26777378]
[1646664548703,0.55932847,38957.0,38952.0,0.31497378]
[1646664549102,0.55932847,38957.0,38952.0,1.09427378]
[1646664549305,0.064203,38956.0,38952.0,1.09427378]
[1646664549505,0.55932847,38957.0,38953.0,0.02554]
[1646664549704,0.55932847,38957.0,38954.0,0.8293]
[1646664549907,0.55932847,38957.0,38956.0,0.17624864]
[1646664550311,0.55932847,38957.0,38956.0,0.22624864]
[1646664550505,0.55932847,38957.0,38956.0,1.00554864]
[1646664550706,0.10513219,38957.0,38956.0,1.37828864]
[1646664550909,0.00027455,38958.0,38957.0,1.25]
[1646664551105,0.00027455,38958.0,38957.0,2.15363156]
[1646664551746,4.0,38960.0,38957.0,2.28195256]
[1646664551945,4.0,38960.0,38959.0,0.80484]
[1646664552146,4.0,38960.0,38959.0,0.85204]
[1646664552346,4.0,38960.0,38959.0,0.90204]
[1646664552545,4.0,38960.0,38959.0,0.89704]
[1646664553348,4.0,38960.0,38959.0,0.8265]
[1646664554648,4.0,38960.0,38959.0,0.8535]
[1646664555301,4.0,38960.0,38959.0,1.24535441]
[1646664555896,4.0,38960.0,38959.0,1.09535441]
[1646664556796,4.0,38960.0,38959.0,1.06835441]
[1646664558099,4.0,38960.0,38959.0,1.06861103]
[1646664558297,4.0,38960.0,38959.0,1.11861103]
[1646664558697,4.0,38960.0,38959.0,1.06861103]
[1646664559149,4.0,38960.0,38959.0,0.26377103]
[1646664559348,4.0,38960.0,38959.0,1.04307103]
[1646664559948,4.0,38960.0,38959.0,1.09307103]
[1646664561151,4.0,38960.0,38959.0,0.0472]
[1646664561152,4.26,38960.0,38959.0,0.0472]
[1646664561354,0.064198,38959.0,38951.0,0.5]
[1646664561550,0.3,38958.0,38951.0,0.5]
[1646664561953,0.064198,38959.0,38952.0,0.064191]
[1646664562149,0.23891476,38958.0,38953.0,0.93540792]
[1646664562351,0.064198,38959.0,38953.0,0.93540792]
[1646664562790,0.00027455,38957.0,38953.0,0.93540792]
[1646664562995,0.128381,38956.0,38953.0,0.93540792]
[1646664563191,0.128381,38956.0,38954.0,0.7793]
[1646664563792,0.128381,38956.0,38954.0,0.77893]
[1646664564693,0.128381,38956.0,38954.0,0.843111]
[1646664565093,0.128381,38956.0,38955.0,0.77893]
[1646664565493,0.128381,38956.0,38955.0,1.07893]
[1646664565898,0.00027455,38957.0,38955.0,1.12613]
[1646664566197,0.064188,38958.0,38956.0,1.307278]
[1646664566397,0.064188,38958.0,38957.0,0.82613]
[1646664567748,0.064188,38958.0,38957.0,0.87613]
[1646664568350,0.064188,38958.0,38957.0,1.17613]
[1646664569250,0.064188,38958.0,38957.0,0.87613]
[1646664570803,0.07447,38958.0,38957.0,0.87613]
[1646664571803,0.33447,38958.0,38957.0,0.87613]
[1646664572204,0.324188,38958.0,38957.0,0.87613]
[1646664572404,0.324188,38958.0,38957.0,0.90167]
[1646664572901,0.1922095,38958.0,38957.0,0.97014424]
[1646664573104,0.1922095,38958.0,38957.0,0.90167]
[1646664573304,0.1922095,38958.0,38957.0,0.95167]
[1646664574042,0.1922095,38958.0,38957.0,0.92613]
[1646664574446,0.1922095,38958.0,38957.0,0.82613]
[1646664574645,0.2564005,38958.0,38955.0,0.7793]
[1646664575243,0.26950163,38957.0,38955.0,0.7793]
[1646664575447,0.2564005,38958.0,38955.0,0.7793]
[1646664575846,0.2564005,38958.0,38955.0,0.8793]
[1646664576044,0.25667505,38958.0,38955.0,0.8793]
[1646664576246,0.25667505,38958.0,38955.0,0.7793]
[1646664576247,0.3,38957.0,38955.0,0.7793]
[1646664576448,0.28723259,38956.0,38951.0,0.7793]
[1646664576646,0.3,38955.0,38951.0,0.7793]
[1646664576850,0.064202,38955.0,38952.0,0.7793]
[1646664577245,0.06447655,38955.0,38952.0,0.7793]
[1646664577798,0.06447655,38955.0,38950.0,0.1059]
[1646664578000,0.06447655,38955.0,38950.0,0.006]
[1646664578199,0.064202,38955.0,38948.0,0.7793]
[1646664578400,0.06447655,38955.0,38948.0,0.7793]
[1646664578801,0.27952562,38950.0,38948.0,0.7793]
[1646664579106,0.064208,38950.0,38948.0,0.8293]
[1646664579302,0.128416,38951.0,38948.0,0.8793]
[1646664579502,0.12869055,38951.0,38948.0,0.1]
[1646664579701,0.12869055,38951.0,38945.0,1.03398125]
[1646664580102,0.12869055,38951.0,38945.0,0.22973192]
[1646664580603,0.128416,38951.0,38945.0,0.22935931]
[1646664580805,0.00027455,38950.0,38945.0,1.00903192]
[1646664581404,0.00027455,38950.0,38945.0,0.22973192]
[1646664581658,0.388416,38951.0,38945.0,0.22935931]
[1646664581852,0.388416,38951.0,38945.0,0.2297327]
[1646664582053,0.00027454,38950.0,38945.0,0.2297327]
[1646664582754,0.06448154,38950.0,38945.0,0.2297327]
[1646664582953,0.064207,38950.0,38945.0,0.22935931]
[1646664583253,0.064207,38950.0,38945.0,0.2297327]
[1646664583254,0.06448154,38950.0,38945.0,0.2297327]
[1646664584054,0.064207,38950.0,38945.0,0.22935931]
[1646664584256,0.23255839,38949.0,38945.0,0.2297327]
[1646664584854,0.06448154,38950.0,38945.0,0.2297327]
[1646664585302,0.06448154,38950.0,38945.0,0.22935931]
[1646664585303,0.064207,38950.0,38945.0,0.22935931]
[1646664585500,0.064207,38950.0,38946.0,0.7793]
[1646664585501,0.06448154,38950.0,38946.0,0.7793]
[1646664586101,0.06448154,38950.0,38945.0,0.22973265]
[1646664586501,0.064207,38950.0,38945.0,0.22935931]
[1646664586700,0.064207,38950.0,38945.0,0.22973265]
[1646664586701,0.06448154,38950.0,38945.0,0.22973265]
[1646664586905,0.10448154,38950.0,38945.0,0.22973265]
[1646664587102,0.10448154,38950.0,38945.0,0.17973265]
[1646664587704,0.104207,38950.0,38945.0,0.17935931]
[1646664587906,0.350236,38950.0,38945.0,0.17973265]
[1646664588104,0.3,38949.0,38945.0,0.22973265]
[1646664588304,0.350236,38950.0,38945.0,0.22973265]
[1646664588904,0.34996146,38950.0,38945.0,0.22935931]
[1646664589147,0.350236,38950.0,38945.0,0.22973265]
[1646664589348,0.10448154,38950.0,38945.0,0.22973265]
[1646664589550,0.40448154,38950.0,38945.0,0.22973265]
[1646664589949,0.10448154,38950.0,38945.0,0.22973265]
[1646664590149,0.104207,38950.0,38945.0,0.22935931]
[1646664590352,0.104207,38950.0,38945.0,0.22973265]
[1646664590353,0.10448154,38950.0,38945.0,0.22973265]
[1646664590949,0.10448154,38950.0,38945.0,0.40854696]
[1646664591251,0.104207,38950.0,38945.0,0.35817362]
[1646664591450,0.104207,38950.0,38946.0,0.0682315]
[1646664591652,0.04027454,38950.0,38948.0,0.7793]
[1646664591850,0.04027454,38950.0,38949.0,0.8265]
[1646664592055,0.04027454,38950.0,38949.0,0.84075422]
[1646664592251,0.04027454,38950.0,38949.0,0.89075422]
[1646664592451,0.04,38950.0,38949.0,0.89075422]
[1646664592653,0.04,38950.0,38949.0,1.19678951]
[1646664592900,4.0999,38960.0,38950.0,1.25]
[1646664592901,0.06418,38959.0,38950.0,1.25]
[1646664593103,0.06418,38959.0,38949.0,1.28651451]
[1646664593104,4.0999,38960.0,38953.0,0.7793]
[1646664593398,4.0999,38960.0,38955.0,0.7793]
[1646664593598,4.0999,38960.0,38957.0,0.7793]
[1646664593799,4.0999,38960.0,38958.0,0.8265]
[1646664593999,4.0999,38960.0,38958.0,0.0472]
[1646664594600,4.0999,38960.0,38959.0,0.7793]
[1646664594798,4.0999,38960.0,38959.0,0.0472]
[1646664595199,4.0949,38960.0,38959.0,0.8265]
[1646664595398,4.0949,38960.0,38959.0,0.0472]
[1646664595598,4.0949,38960.0,38959.0,0.0972]
[1646664595798,4.0949,38960.0,38959.0,0.0472]
[1646664596000,3.995,38960.0,38959.0,0.0472]
[1646664596200,3.995,38960.0,38959.0,0.8765]
[1646664597249,3.995,38960.0,38959.0,0.940673]
[1646664597846,3.995,38960.0,38959.0,0.0972]
[1646664598447,3.995,38960.0,38959.0,0.1472]
[1646664598646,3.995,38960.0,38959.0,0.0972]
[1646664598845,3.995,38960.0,38959.0,0.8765]
[1646664599045,3.995,38960.0,38959.0,0.1472]
[1646664599447,3.995,38960.0,38959.0,0.0972]
[1646664599947,3.995,38960.0,38959.0,0.1472]
[1646664600152,3.995,38960.0,38959.0,0.0972]
[1646664600407,3.995,38960.0,38959.0,0.9265]
[1646664601208,3.995,38960.0,38959.0,1.05974588]
[1646664601409,3.95993812,38960.0,38959.0,1.532471]
[1646664601608,3.92253359,38960.0,38959.0,1.58406256]
[1646664602413,3.21703359,38960.0,38959.0,1.58406256]
[1646664602607,3.21703359,38960.0,38959.0,8.08406256]
[1646664603007,3.21703359,38960.0,38959.0,8.18396256]
[1646664603008,3.47703359,38960.0,38959.0,8.18396256]
[1646664603208,0.00027386,38961.0,38960.0,1.07577]
[1646664603408,0.064157,38971.0,38964.0,0.7793]
[1646664603608,0.064157,38971.0,38966.0,0.80251329]
[1646664603808,0.064157,38971.0,38968.0,0.7793]
[1646664604055,0.064157,38971.0,38970.0,0.7793]
[1646664604250,0.064157,38971.0,38970.0,0.0514]
[1646664604449,0.064157,38971.0,38970.0,0.8307]
[1646664605251,0.02045651,38971.0,38970.0,0.8807]
[1646664605453,0.00027386,38972.0,38970.0,0.90747766]
[1646664605654,0.02,38983.0,38975.0,0.7793]
[1646664605851,0.02,38983.0,38974.0,0.02554]
[1646664605852,0.02,38983.0,38978.0,0.02092057]
[1646664606051,0.02,38983.0,38979.0,0.8307]
[1646664606551,0.02,38983.0,38982.0,0.9508274]
[1646664606752,0.084139,38983.0,38982.0,1.0022274]
[1646664607550,1.27095901,38999.0,38985.0,0.7793]
[1646664607551,0.46551709,38997.0,38985.0,0.7793]
[1646664607807,0.493121,39004.0,38992.0,0.7793]
[1646664607808,0.95026509,39002.0,38992.0,0.7793]
[1646664607998,0.95026509,39002.0,38995.0,0.064114]
[1646664607999,0.20896509,39002.0,38995.0,0.064114]
[1646664608197,0.064111,38998.0,38996.0,0.0514]
[1646664608398,0.064111,38998.0,38994.0,0.05]
[1646664608399,0.06973649,38995.0,38994.0,0.05]
[1646664608597,0.06973649,38995.0,38986.0,0.1999]
[1646664608796,0.06973649,38995.0,38994.0,0.0514]
[1646664609297,0.23750707,38995.0,38994.0,0.0514]
[1646664611648,0.06973649,38995.0,38994.0,0.0514]
[1646664612448,0.53020479,38995.0,38994.0,0.0514]
[1646664614154,0.53020479,38995.0,38987.0,0.32345042]
[1646664614155,0.064154,38993.0,38987.0,0.0514]
[1646664614351,0.064154,38993.0,38986.0,0.19565017]
[1646664614352,0.02554,38992.0,38986.0,0.19565017]
[1646664614551,0.192437,38992.0,38986.0,0.0514]
[1646664614952,0.1805584,38989.0,38986.0,0.0514]
[1646664615152,0.2447024,38989.0,38986.0,0.0514]
[1646664615602,0.24497537,38989.0,38986.0,0.0514]
[1646664616604,0.2447024,38989.0,38986.0,0.0514]
[1646664616903,0.06441697,38989.0,38986.0,0.0514]
[1646664617102,0.06441697,38989.0,38986.0,0.11554]
[1646664617403,0.06441697,38989.0,38987.0,0.3]
[1646664617603,0.06441697,38989.0,38988.0,0.06421]
[1646664617803,0.064144,38989.0,38988.0,0.06421]
[1646664619268,0.064144,38989.0,38988.0,0.0514]
[1646664621061,0.064144,38989.0,38987.0,0.01281]
[1646664621260,0.064144,38989.0,38986.0,0.05]
[1646664621463,0.049144,38989.0,38986.0,0.05]
[1646664621665,0.309144,38989.0,38984.0,0.06281]
[1646664621862,0.309144,38989.0,38985.0,0.16400497]
[1646664622264,0.309144,38989.0,38986.0,0.05]
[1646664622466,0.309144,38989.0,38986.0,0.045]
[1646664622894,0.30941697,38989.0,38987.0,0.01281]
[1646664623298,0.30775354,38989.0,38984.0,0.02135487]
[1646664623494,0.30775354,38989.0,38985.0,0.05]
[1646664623694,0.19812291,38987.0,38984.0,0.02135487]
[1646664623895,0.19812291,38987.0,38985.0,0.05]
[1646664624095,0.128294,38988.0,38982.0,0.40595518]
[1646664624295,0.128294,38988.0,38982.0,0.45727818]
[1646664624495,0.128294,38988.0,38983.0,0.45080501]
[1646664624896,0.128294,38988.0,38983.0,0.428269]
[1646664625297,0.00027297,38987.0,38983.0,0.45278332]
[1646664625496,0.06440597,38987.0,38983.0,1.207569]
[1646664625696,0.06440597,38987.0,38984.0,0.943433]
[1646664625899,0.06440597,38987.0,38984.0,0.164133]
[1646664626297,0.06440597,38987.0,38984.0,0.1]
[1646664626298,0.064133,38987.0,38984.0,0.1]
[1646664626555,0.06440597,38987.0,38985.0,0.01281]
[1646664626960,0.06440597,38987.0,38985.0,0.064132]
[1646664627157,0.06440597,38987.0,38986.0,0.01281]
[1646664627359,0.064133,38987.0,38986.0,0.01281]
[1646664627559,0.064133,38987.0,38985.0,1.006142]
[1646664628559,0.064133,38987.0,38986.0,0.8307]
[1646664628756,0.26,38989.0,38987.0,0.07002863]
[1646664628958,0.00027297,38988.0,38987.0,0.0514]
[1646664629158,0.00027297,38988.0,38987.0,0.1513]
[1646664629356,0.00027297,38988.0,38987.0,1.10753572]
[1646664629758,0.128239,39004.0,38990.0,0.12823]